[Event "FIDE World Rapid-ch Open 2018"]
[White "Zubov, Alexander"]
[Black "Nepomniachtchi, Ian"]
[Site "St. Petersburg"]
[Round "14.13"]
[Annotator "ChessBase"]
[Result "1/2-1/2"]
[Date "2018.12.28"]
[WhiteElo "2597"]
[BlackElo "2763"]
[PlyCount "207"]
[TimeControl "900+10"]

1. d4 {[%emt 0:0:0]} g6 {[%emt 0:0:0]} 2. e4 {[%emt 0:0:0]} d6 {[%emt 0:0:0]} 3. Nf3 {[%emt 0:0:0]} Nf6 {[%emt 0:0:0]} 4. Bd3 {[%emt 0:0:1]} Bg7 {[%emt 0:0:0]} 5. 0-0 {[%emt 0:0:3]} 0-0 {[%emt 0:0:0]} 6. Re1 {[%emt 0:0:4]
} c6 {[%emt 0:0:0]} 7. h3 Qc7 8. Nbd2 {[%emt 0:1:35]} e5 {[%emt 0:0:0]
} 9. c3 {[%emt 0:0:2]} Nbd7 {[%emt 0:0:10]} 10. Nf1 {[%emt 0:0:0]} Nh5 {[%emt 0:0:1]} 11. Be3 {[%emt 0:0:11]} Re8 {[%emt 0:0:10]} 12. Qd2 {[%emt 0:1:45]} Nf8 {[%emt 0:0:3]} 13. Rad1 {[%emt 0:0:50]} b5 {[%emt 0:0:4]
} 14. c4 {[%emt 0:0:52]} a6 {[%emt 0:0:21]} 15. Rc1 {[%emt 0:0:0]} Qb7 {[%emt 0:0:12]} 16. d5 {[%emt 0:0:31]} Bd7 {[%emt 0:0:28]} 17. b3 {[%emt 0:0:21]} c5 {[%emt 0:0:6]} 18. g4 {[%emt 0:0:12]} Nf6 {[%emt 0:0:0]} 19. Ng3 {[%emt 0:0:2]} bxc4 {[%emt 0:0:23]} 20. bxc4 {[%emt 0:0:5]
} Reb8 {[%emt 0:0:1]} 21. Rb1 {[%emt 0:1:26]} Qc8 {[%emt 0:0:2]} 22. Bg5 {[%emt 0:0:38]
} a5 {[%emt 0:0:32]} 23. Rxb8 {[%emt 0:0:10]} Rxb8 {[%emt 0:0:0]} 24. Qxa5 {[%emt 0:0:19]} Ra8 {[%emt 0:0:2]} 25. Qd2 {[%emt 0:0:42]} Ra3 {[%emt 0:0:6]} 26. Rb1 {[%emt 0:0:38]} Qa6 {[%emt 0:0:17]} 27. Rb2 {[%emt 0:0:2]
} Bc8 {[%emt 0:0:59]} 28. Kg2 {[%emt 0:0:6]} N8d7 {[%emt 0:0:0]} 29. Nf1 {[%emt 0:0:35]} Nb6 {[%emt 0:0:6]} 30. Ne3 {[%emt 0:0:5]} h5 {[%emt 0:0:7]} 31. Nh2 {[%emt 0:0:47]} hxg4 {[%emt 0:0:35]} 32. hxg4 {[%emt 0:0:2]
} Nbd7 {[%emt 0:0:40]} 33. Bh4 {[%emt 0:0:28]} Bh6 {[%emt 0:0:0]} 34. Qe2 {[%emt 0:0:50]} Bf4 {[%emt 0:0:23]} 35. Nhf1 {[%emt 0:1:18]} Nh7 {[%emt 0:1:53]} 36. f3 {[%emt 0:0:21]} Ng5 {[%emt 0:0:9]} 37. Bb1 {[%emt 0:1:25]
} Kg7 {[%emt 0:1:26]} 38. Be1 {[%emt 0:0:23]} Nb6 {[%emt 0:0:0]} 39. Rb3 {[%emt 0:0:9]} Ra4 {[%emt 0:0:6]} 40. Rc3 {[%emt 0:0:37]} Bd7 {[%emt 0:0:34]} 41. Bg3 {[%emt 0:0:39]} Bxg3 {[%emt 0:1:41]} 42. Kxg3 {[%emt 0:0:7]
} Bc8 {[%emt 0:0:9]} 43. Nd2 {[%emt 0:0:41]} Qa7 {[%emt 0:0:0]} 44. Rb3 {[%emt 0:0:38]} Ba6 {[%emt 0:0:49]} 45. a3 {[%emt 0:0:18]} Bc8 {[%emt 0:0:13]} 46. Qd3 {[%emt 0:0:2]} Bd7 {[%emt 0:0:26]} 47. Bc2 {[%emt 0:0:17]
} Ra6 {[%emt 0:0:2]} 48. Bd1 {[%emt 0:0:6]} Qa8 {[%emt 0:0:0]} 49. Qe2 {[%emt 0:0:30]} Qd8 {[%emt 0:0:10]} 50. Qh2 {[%emt 0:0:12]} Qf6 {[%emt 0:0:13]} 51. Kg2 {[%emt 0:0:23]} Ba4 {[%emt 0:0:6]} 52. Rxb6 {[%emt 0:0:47]
} Rxb6 {[%emt 0:0:8]} 53. Bxa4 {[%emt 0:0:2]} Rb2 {[%emt 0:0:0]} 54. Bc2 {[%emt 0:0:1]} Qf4 {[%emt 0:0:25]} 55. Qg1 {[%emt 0:0:1]} Ra2 {[%emt 0:0:1]} 56. Qf2 {[%emt 0:0:24]} Rxa3 {[%emt 0:0:1]} 57. Nef1 {[%emt 0:0:21]
} Ra8 {[%emt 0:0:37]} 58. Qe3 {[%emt 0:0:12]} Qf6 {[%emt 0:0:0]} 59. Qf2 {[%emt 0:0:35]} Rh8 {[%emt 0:0:37]} 60. Qg3 {[%emt 0:0:1]} Kg8 {[%emt 0:0:57]} 61. Bd3 {[%emt 0:0:5]} Rh7 {[%emt 0:0:10]} 62. Nh2 {[%emt 0:0:17]
} Qh8 {[%emt 0:0:7]} 63. f4 {[%emt 0:0:18]} exf4 {[%emt 0:0:0]} 64. Qxf4 {[%emt 0:0:1]} Nh3 {[%emt 0:0:2]} 65. Qe3 {[%emt 0:0:23]} Nf2 {[%emt 0:0:11]} 66. Ndf3 {[%emt 0:0:7]} Rxh2+ {[%emt 0:1:49]} 67. Nxh2 {[%emt 0:0:1]} Qxh2+ {[%emt 0:0:1]} 68. Kxh2 {[%emt 0:0:1]} Nxg4+ {[%emt 0:0:2]
} 69. Kg3 {[%emt 0:0:2]} Nxe3 {[%emt 0:0:1]} 70. Kf4 {[%emt 0:0:13]
} Ng2+ {[%emt 0:0:4]} 71. Kg3 {[%emt 0:0:1]} Ne3 {[%emt 0:0:0]} 72. Kf4 {[%emt 0:0:11]} Nd1 {[%emt 0:1:15]} 73. e5 {[%emt 0:0:9]} Nb2 {[%emt 0:0:2]} 74. Be2 {[%emt 0:0:16]} Kf8 {[%emt 0:0:3]} 75. exd6 {[%emt 0:0:30]
} f6 {[%emt 0:0:2]} 76. Ke3 {[%emt 0:0:13]} Ke8 {[%emt 0:0:0]} 77. Bd3 {[%emt 0:0:12]} Kd7 {[%emt 0:0:40]} 78. Bxg6 {[%emt 0:0:2]} Nxc4+ {[%emt 0:0:1]} 79. Kf4 {[%emt 0:0:14]} Nxd6 {[%emt 0:0:5]} 80. Bc2 {[%emt 0:0:8]
} Kc7 {[%emt 0:0:8]} 81. Kg4 {[%emt 0:0:6]} Nb5 {[%emt 0:0:0]} 82. Bb3 {[%emt 0:0:9]} Kd6 {[%emt 0:0:5]} 83. Kf4 {[%emt 0:0:2]} Ke7 {[%emt 0:1:12]} 84. Ba2 {[%emt 0:0:18]} Nd6 {[%emt 0:0:6]} 85. Bb1 {[%emt 0:0:4]
} Kd8 {[%emt 0:0:6]} 86. Bc2 {[%emt 0:0:7]} Kc7 {[%emt 0:0:0]} 87. Kg4 {[%emt 0:0:1]} Kb6 {[%emt 0:0:9]} 88. Kh5 {[%emt 0:0:6]} c4 {[%emt 0:0:12]} 89. Kg6 {[%emt 0:0:3]} f5 {[%emt 0:0:1]} 90. Kf6 {[%emt 0:0:0]} Kc5 {[%emt 0:0:2]} 91. Ke5 {[%emt 0:0:2]} c3 {[%emt 0:0:1]} 92. Bd3 {[%emt 0:0:10]} Nc4+ {[%emt 0:1:10]} 93. Kxf5 {[%emt 0:0:12]} Kxd5 {[%emt 0:0:1]
} 94. Kf4 {[%emt 0:0:8]} Kd4 {[%emt 0:0:1]} 95. Bc2 {[%emt 0:0:0]} Ne5 {[%emt 0:0:2]} 96. Bb1 {[%emt 0:0:5]} Nc4 {[%emt 0:0:1]} 97. Bc2 {[%emt 0:0:5]} Ne3 {[%emt 0:0:9]} 98. Bb1 {[%emt 0:0:5]} Nf1 {[%emt 0:0:5]
} 99. Bc2 {[%emt 0:0:4]} Nd2 {[%emt 0:0:1]} 100. Bh7 {[%emt 0:0:6]
} Kc4 {[%emt 0:0:1]} 101. Bc2 {[%emt 0:0:23]} Kd4 {[%emt 0:0:0]} 102. Bh7 {[%emt 0:0:4]} Nb3 {[%emt 0:0:7]} 103. Kf3 {[%emt 0:0:8]} Nc1 {[%emt 0:0:3]} 104. Bc2 {[%emt 0:0:6]} 1/2-1/2

[Event "FIDE World Rapid-ch Open 2018"]
[White "Petrosian, Tigran L."]
[Black "Guseinov, Gadir"]
[Site "St. Petersburg"]
[Round "14.14"]
[Annotator "ChessBase"]
[Result "1-0"]
[Date "2018.12.28"]
[WhiteElo "2598"]
[BlackElo "2664"]
[PlyCount "117"]
[TimeControl "900+10"]

1. Nf3 {[%emt 0:0:0]} g6 {[%emt 0:0:0]} 2. g3 {[%emt 0:0:0]} Bg7 {[%emt 0:0:0]
} 3. Bg2 {[%emt 0:0:0]} d6 {[%emt 0:0:4]} 4. 0-0 {[%emt 0:0:0]} Nf6 {[%emt 0:0:12]} 5. c4 {[%emt 0:0:13]} 0-0 {[%emt 0:0:7]} 6. Nc3 {[%emt 0:0:3]
} e5 {[%emt 0:0:9]} 7. d3 {[%emt 0:0:2]} Re8 {[%emt 0:0:44]} 8. Rb1 {[%emt 0:0:18]} a5 {[%emt 0:0:39]} 9. a3 {[%emt 0:0:8]} Nc6 {[%emt 0:0:40]
} 10. Bg5 {[%emt 0:0:26]} h6 {[%emt 0:0:33]} 11. Bxf6 {[%emt 0:0:0]} Bxf6 {[%emt 0:0:8]} 12. b4 {[%emt 0:0:9]} axb4 {[%emt 0:0:5]} 13. axb4 {[%emt 0:0:1]} Bg7 {[%emt 0:0:19]} 14. b5 {[%emt 0:0:13]} Nd4 {[%emt 0:0:8]
} 15. Nxd4 {[%emt 0:3:49]} exd4 {[%emt 0:0:3]} 16. Nd5 {[%emt 0:0:1]
} Bg4 {[%emt 0:0:58]} 17. Re1 {[%emt 0:0:15]} Ra2 {[%emt 0:0:0]} 18. Bf3 {[%emt 0:0:5]} h5 {[%emt 0:2:22]} 19. Nb4 {[%emt 0:1:21]} Ra7 {[%emt 0:0:31]} 20. b6 {[%emt 0:0:31]} cxb6 {[%emt 0:0:16]} 21. Bxg4 {[%emt 0:0:35]
} hxg4 {[%emt 0:0:1]} 22. Nd5 {[%emt 0:0:1]} Ra5 {[%emt 0:0:0]} 23. Nxb6 {[%emt 0:2:24]} Rh5 {[%emt 0:0:49]} 24. Nd5 {[%emt 0:0:12]} Qg5 {[%emt 0:0:16]} 25. Qa4 {[%emt 0:4:22]} Rf8 {[%emt 0:0:42]} 26. Qd7 {[%emt 0:0:54]
} Be5 {[%emt 0:3:26]} 27. Rxb7 {[%emt 0:1:5]} Kg7 {[%emt 0:0:0]} 28. Nc7 {[%emt 0:0:22]} Kg8 {[%emt 0:0:1]} 29. Nd5 {[%emt 0:0:35]} Kg7 {[%emt 0:0:1]} 30. Ra1 {[%emt 0:0:12]} Rh7 {[%emt 0:1:11]} 31. Nc7 {[%emt 0:1:17]
} Kg8 {[%emt 0:0:1]} 32. Nd5 {[%emt 0:0:19]} Qh5 {[%emt 0:0:0]} 33. h4 {[%emt 0:0:1]} gxh3 {[%emt 0:0:1]} 34. Re1 {[%emt 0:0:17]} Qg5 {[%emt 0:0:41]} 35. Kh2 {[%emt 0:0:13]} Qd2 {[%emt 0:0:27]} 36. Rbb1 {[%emt 0:0:0]
} Rh5 {[%emt 0:0:41]} 37. Rbd1 {[%emt 0:0:5]} Qc2 {[%emt 0:0:0]} 38. Qg4 {[%emt 0:0:23]} Re8 {[%emt 0:0:15]} 39. Nc7 {[%emt 0:0:9]} Re7 {[%emt 0:0:24]} 40. Nd5 {[%emt 0:0:1]} Re8 {[%emt 0:0:0]} 41. f4 {[%emt 0:0:0]} Bg7 {[%emt 0:0:2]} 42. Qf3 {[%emt 0:0:5]} Rh6 {[%emt 0:0:25]} 43. Ra1 {[%emt 0:0:24]} Qd2 {[%emt 0:0:11]} 44. Rad1 {[%emt 0:0:0]} Qc2 {[%emt 0:0:1]
} 45. Kh1 {[%emt 0:0:17]} Kh8 {[%emt 0:0:5]} 46. Ra1 {[%emt 0:0:0]} Qd2 {[%emt 0:0:1]} 47. Rad1 {[%emt 0:0:7]} Qc2 {[%emt 0:0:1]} 48. Qg4 {[%emt 0:0:13]} Rh5 {[%emt 0:0:23]} 49. Qf3 {[%emt 0:0:10]} Rh6 {[%emt 0:0:2]
} 50. Kg1 {[%emt 0:0:7]} Kg8 {[%emt 0:0:7]} 51. Kf2 {[%emt 0:0:0]} g5 {[%emt 0:0:38]} 52. fxg5 {[%emt 0:0:8]} Rg6 {[%emt 0:0:0]} 53. Ra1 {[%emt 0:0:14]} Rxg5 {[%emt 0:0:23]} 54. Ra7 {[%emt 0:0:2]} f5 {[%emt 0:0:31]
} 55. Ne7+ {[%emt 0:0:9]} Kh8 {[%emt 0:0:11]} 56. Rh1 {[%emt 0:0:6]
} Be5 {[%emt 0:0:5]} 57. Rxh3+ {[%emt 0:0:5]} Kg7 {[%emt 0:0:0]} 58. Nxf5+ {[%emt 0:0:5]} Kg6 {[%emt 0:0:11]} 59. Rh6# {[%emt 0:0:0]} 1-0

[Event "FIDE World Rapid-ch Open 2018"]
[White "Savchenko, Boris"]
[Black "Jakovenko, Dmitry"]
[Site "St. Petersburg"]
[Round "14.15"]
[Annotator "ChessBase"]
[Result "0-1"]
[Date "2018.12.28"]
[WhiteElo "2562"]
[BlackElo "2735"]
[PlyCount "84"]
[TimeControl "900+10"]

1. e4 {[%emt 0:0:0]} e5 {[%emt 0:0:0]} 2. Nf3 {[%emt 0:0:27]} Nc6 {[%emt 0:0:0]
} 3. Nc3 {[%emt 0:0:19]} Nf6 {[%emt 0:0:0]} 4. Rb1 {[%emt 0:0:0]} Bb4 {[%emt 0:1:50]} 5. Bc4 {[%emt 0:6:29]} Bxc3 {[%emt 0:1:59]} 6. bxc3 {[%emt 0:0:26]} Nxe4 {[%emt 0:0:52]} 7. Bd5 {[%emt 0:0:26]} Nf6 {[%emt 0:0:18]
} 8. Bxc6 {[%emt 0:0:5]} dxc6 {[%emt 0:0:1]} 9. Nxe5 {[%emt 0:0:28]
} Qd5 {[%emt 0:0:41]} 10. 0-0 {[%emt 0:0:8]} 0-0 {[%emt 0:0:0]} 11. d4 {[%emt 0:1:2]} Qxa2 {[%emt 0:0:10]} 12. Rb3 {[%emt 0:0:53]} c5 {[%emt 0:1:32]} 13. dxc5 {[%emt 0:3:17]} Qa6 {[%emt 0:1:31]} 14. c4 {[%emt 0:0:29]
} Bf5 {[%emt 0:0:27]} 15. Bb2 {[%emt 0:1:11]} Rfd8 {[%emt 0:0:0]} 16. Qc1 {[%emt 0:0:6]} Bg6 {[%emt 0:2:21]} 17. Re1 {[%emt 0:1:32]} Re8 {[%emt 0:0:12]} 18. Rbe3 {[%emt 0:0:19]} Qa4 {[%emt 0:0:29]} 19. c6 {[%emt 0:0:12]
} bxc6 {[%emt 0:0:19]} 20. Nd7 {[%emt 0:0:6]} Ne4 {[%emt 0:0:0]} 21. f3 {[%emt 0:0:16]} c5 {[%emt 0:0:8]} 22. Ne5 {[%emt 0:0:9]} Nd6 {[%emt 0:0:24]
} 23. R1e2 {[%emt 0:0:11]} f6 {[%emt 0:0:32]} 24. Ra3 {[%emt 0:0:0]} Qb4 {[%emt 0:0:31]} 25. Rb3 {[%emt 0:0:1]} Qa5 {[%emt 0:0:25]} 26. Nc6 {[%emt 0:0:2]} Qa4 {[%emt 0:0:6]} 27. Ne7+ {[%emt 0:0:5]} Kf7 {[%emt 0:0:5]
} 28. Qe1 {[%emt 0:0:21]} Qxc4 {[%emt 0:0:11]} 29. Rbe3 {[%emt 0:0:9]
} a5 {[%emt 0:0:29]} 30. h4 {[%emt 0:0:2]} a4 {[%emt 0:0:8]} 31. Ba1 {[%emt 0:0:28]} a3 {[%emt 0:0:3]} 32. g4 {[%emt 0:0:7]} a2 {[%emt 0:0:12]
} 33. h5 {[%emt 0:0:2]} Be4 {[%emt 0:0:4]} 34. fxe4 {[%emt 0:0:0]} Rxe7 {[%emt 0:0:1]} 35. g5 {[%emt 0:0:3]} Rb8 {[%emt 0:0:2]} 36. Rb3 {[%emt 0:0:17]} Rxb3 {[%emt 0:0:4]} 37. cxb3 {[%emt 0:0:2]} Qxb3 {[%emt 0:0:2]
} 38. Qf2 {[%emt 0:0:18]} Qb1+ {[%emt 0:0:4]} 39. Re1 {[%emt 0:0:1]
} Rxe4 {[%emt 0:0:2]} 40. Rf1 {[%emt 0:0:9]} Rg4+ {[%emt 0:0:0]} 41. Kh2 {[%emt 0:0:1]} Qe4 {[%emt 0:0:5]} 42. Qxa2+ {[%emt 0:0:11]
} c4 {[%emt 0:0:1]} 0-1

[Event "FIDE World Rapid-ch Open 2018"]
[White "Cheparinov, Ivan"]
[Black "Alekseev, Evgeny"]
[Site "St. Petersburg"]
[Round "14.17"]
[Annotator "ChessBase"]
[Result "1-0"]
[Date "2018.12.28"]
[WhiteElo "2709"]
[BlackElo "2639"]
[PlyCount "156"]
[TimeControl "900+10"]

1. Nf3 {[%emt 0:0:0]} c5 {[%emt 0:0:0]} 2. c4 {[%emt 0:0:0]} Nc6 {[%emt 0:0:13]
} 3. Nc3 {[%emt 0:0:0]} g6 {[%emt 0:0:21]} 4. e3 {[%emt 0:0:0]} Nf6 {[%emt 0:0:9]} 5. d4 {[%emt 0:0:1]} cxd4 {[%emt 0:0:3]} 6. exd4 {[%emt 0:0:2]} d5 {[%emt 0:0:2]} 7. cxd5 {[%emt 0:0:3]} Nxd5 {[%emt 0:0:0]} 8. Qb3 {[%emt 0:0:2]} e6 {[%emt 0:0:16]} 9. Bb5 {[%emt 0:0:7]} Bg7 {[%emt 0:0:9]
} 10. 0-0 {[%emt 0:0:6]} 0-0 {[%emt 0:0:7]} 11. Bxc6 {[%emt 0:0:2]
} bxc6 {[%emt 0:0:3]} 12. Re1 {[%emt 0:0:3]} Qc7 {[%emt 0:0:0]} 13. h3 {[%emt 0:0:5]} Rb8 {[%emt 0:1:2]} 14. Qd1 {[%emt 0:0:5]} Rd8 {[%emt 0:1:11]} 15. Ne4 {[%emt 0:1:52]} h6 {[%emt 0:0:15]} 16. Bd2 {[%emt 0:0:0]} Kh7 {[%emt 0:2:25]} 17. Rb1 {[%emt 0:2:28]} Rb5 {[%emt 0:1:53]} 18. a4 {[%emt 0:0:27]} Rb8 {[%emt 0:0:12]} 19. b4 {[%emt 0:0:5]} Qe7 {[%emt 0:0:0]} 20. Nc5 {[%emt 0:0:49]} Bd7 {[%emt 0:0:40]} 21. Ne5 {[%emt 0:0:26]} Be8 {[%emt 0:0:1]} 22. Qc2 {[%emt 0:0:24]} Qh4 {[%emt 0:0:52]} 23. Re4 {[%emt 0:0:35]
} Qe7 {[%emt 0:0:5]} 24. Ree1 {[%emt 0:0:39]} Qh4 {[%emt 0:0:0]} 25. Nf3 {[%emt 0:0:23]} Qf6 {[%emt 0:0:29]} 26. Rb3 {[%emt 0:0:12]} Qe7 {[%emt 0:1:28]} 27. Ne5 {[%emt 0:0:19]} Qh4 {[%emt 0:0:8]} 28. Nf3 {[%emt 0:0:31]
} Qe7 {[%emt 0:0:6]} 29. Qc1 {[%emt 0:0:15]} Qf6 {[%emt 0:0:0]} 30. Ne5 {[%emt 0:0:19]} Qh4 {[%emt 0:0:6]} 31. Nf3 {[%emt 0:0:22]} Qf6 {[%emt 0:0:13]} 32. Re4 {[%emt 0:0:4]} Qe7 {[%emt 0:0:45]} 33. Rh4 {[%emt 0:0:14]
} h5 {[%emt 0:0:51]} 34. Re4 {[%emt 0:0:20]} Rd6 {[%emt 0:0:0]} 35. Re1 {[%emt 0:0:43]} f6 {[%emt 0:0:11]} 36. Qc4 {[%emt 0:1:25]} Bf7 {[%emt 0:0:42]} 37. Qc2 {[%emt 0:0:57]} Kg8 {[%emt 0:0:10]} 38. Qc1 {[%emt 0:1:6]
} g5 {[%emt 0:0:7]} 39. Ne4 {[%emt 0:0:41]} Rd7 {[%emt 0:0:0]} 40. Qxc6 Rc7 41. Qa6 {[%emt 0:2:0]} g4 {[%emt 0:0:24]} 42. hxg4 {[%emt 0:0:1]
} hxg4 {[%emt 0:0:1]} 43. Nh2 {[%emt 0:0:23]} Nxb4 {[%emt 0:0:0]} 44. Qa5 {[%emt 0:0:25]} Nc6 {[%emt 0:0:20]} 45. Rxb8+ {[%emt 0:0:3]
} Nxb8 {[%emt 0:0:1]} 46. Nxg4 {[%emt 0:0:19]} Rc8 {[%emt 0:0:7]} 47. Bb4 {[%emt 0:0:22]} Qd8 {[%emt 0:0:5]} 48. Qxd8+ {[%emt 0:0:3]} Rxd8 {[%emt 0:0:0]} 49. Ngxf6+ {[%emt 0:0:14]} Bxf6 {[%emt 0:0:2]} 50. Nxf6+ Kg7 51. Ng4 {[%emt 0:0:48]} Nc6 {[%emt 0:0:1]} 52. Bc3 {[%emt 0:0:3]} Kf8 {[%emt 0:0:0]} 53. Re4 {[%emt 0:0:22]} Ke7 {[%emt 0:0:8]} 54. Ne5 {[%emt 0:0:23]} Be8 {[%emt 0:0:1]} 55. Rh4 {[%emt 0:0:18]} Nxe5 {[%emt 0:0:19]} 56. dxe5 {[%emt 0:0:1]
} Rd1+ {[%emt 0:0:11]} 57. Kh2 {[%emt 0:0:1]} Bg6 {[%emt 0:0:0]} 58. Rg4 {[%emt 0:0:12]} Kf7 {[%emt 0:0:10]} 59. Rb4 {[%emt 0:0:6]} Rd7 {[%emt 0:0:7]} 60. a5 {[%emt 0:0:12]} a6 {[%emt 0:0:23]} 61. Bd4 {[%emt 0:0:0]} Be4 {[%emt 0:0:3]} 62. Bc5 {[%emt 0:0:7]} Bc6 {[%emt 0:0:9]} 63. Bd6 {[%emt 0:0:6]} Rb7 {[%emt 0:0:12]} 64. Rf4+ {[%emt 0:0:9]} Ke8 {[%emt 0:0:1]
} 65. Rf8+ {[%emt 0:0:18]} Kd7 {[%emt 0:0:0]} 66. g4 {[%emt 0:0:0]} Rb3 {[%emt 0:0:11]} 67. Rf7+ {[%emt 0:0:10]} Kd8 {[%emt 0:0:6]} 68. Rf8+ {[%emt 0:0:20]} Kd7 {[%emt 0:0:1]} 69. f4 {[%emt 0:0:20]} Be4 {[%emt 0:0:32]
} 70. Rf7+ {[%emt 0:0:26]} Kc6 {[%emt 0:0:12]} 71. f5 {[%emt 0:0:0]} exf5 {[%emt 0:0:9]} 72. gxf5 {[%emt 0:0:3]} Kd5 {[%emt 0:0:21]} 73. f6 {[%emt 0:0:9]} Rf3 {[%emt 0:0:29]} 74. Rg7 {[%emt 0:0:18]} Ke6 {[%emt 0:0:4]
} 75. Re7+ {[%emt 0:0:4]} Kd5 {[%emt 0:0:1]} 76. Ra7 {[%emt 0:0:13]
} Bg6 {[%emt 0:0:8]} 77. Rxa6 {[%emt 0:0:10]} Ke4 {[%emt 0:0:0]} 78. Rb6 {[%emt 0:0:2]} Kd5 1-0

[Event "FIDE World Rapid-ch Open 2018"]
[White "Motylev, Alexander"]
[Black "Paravyan, David"]
[Site "St. Petersburg"]
[Round "14.18"]
[Annotator "ChessBase"]
[Result "0-1"]
[Date "2018.12.28"]
[WhiteElo "2644"]
[BlackElo "2634"]
[PlyCount "176"]
[TimeControl "900+10"]

1. e4 {[%emt 0:0:0]} e5 {[%emt 0:0:0]} 2. Nf3 {[%emt 0:0:0]} Nc6 {[%emt 0:0:0]
} 3. Nc3 {[%emt 0:0:1]} Nf6 {[%emt 0:0:0]} 4. d4 {[%emt 0:0:0]} exd4 {[%emt 0:0:0]} 5. Nxd4 {[%emt 0:0:1]} Bb4 {[%emt 0:0:0]} 6. Nxc6 {[%emt 0:0:2]} bxc6 {[%emt 0:0:0]} 7. Bd3 {[%emt 0:0:1]} 0-0 {[%emt 0:0:0]
} 8. 0-0 {[%emt 0:0:2]} d5 {[%emt 0:0:0]} 9. Bd2 {[%emt 0:0:0]} Rb8 {[%emt 0:0:57]} 10. Re1 {[%emt 0:0:1]} Be6 {[%emt 0:0:51]} 11. a3 {[%emt 0:0:31]} Bc5 {[%emt 0:1:23]} 12. Bg5 {[%emt 0:0:39]} h6 {[%emt 0:0:0]} 13. Bh4 {[%emt 0:0:15]} Be7 {[%emt 0:1:26]} 14. exd5 {[%emt 0:1:34]} Nxd5 {[%emt 0:0:3]} 15. Bxe7 {[%emt 0:0:40]} Qxe7 {[%emt 0:0:1]} 16. Qf3 {[%emt 0:2:49]
} Qg5 {[%emt 0:3:49]} 17. Ne4 {[%emt 0:1:25]} Qf4 {[%emt 0:0:0]} 18. Qxf4 {[%emt 0:0:3]} Nxf4 {[%emt 0:0:2]} 19. b4 {[%emt 0:0:2]} Nxd3 {[%emt 0:0:37]} 20. cxd3 {[%emt 0:0:1]} Bd5 {[%emt 0:1:3]} 21. Nc5 {[%emt 0:0:3]
} Rfd8 {[%emt 0:1:51]} 22. Re7 {[%emt 0:0:46]} Rbc8 {[%emt 0:0:0]} 23. Rae1 {[%emt 0:0:22]} Kf8 {[%emt 0:1:37]} 24. R7e3 {[%emt 0:1:7]
} Rd6 {[%emt 0:0:31]} 25. f3 {[%emt 0:0:28]} Be6 {[%emt 0:0:54]} 26. Kf2 {[%emt 0:0:40]
} Re8 {[%emt 0:0:54]} 27. Re5 {[%emt 0:0:45]} Rd5 {[%emt 0:0:0]} 28. Rxd5 {[%emt 0:1:9]} cxd5 {[%emt 0:0:11]} 29. Rc1 {[%emt 0:0:9]} d4 {[%emt 0:0:41]} 30. b5 {[%emt 0:3:43]} Rc8 {[%emt 0:0:59]} 31. Nxe6+ {[%emt 0:1:10]
} fxe6 32. f4 Ke7 {[%emt 0:0:40]} 33. Kf3 {[%emt 0:0:12]} Kd7 {[%emt 0:0:22]
} 34. Rc4 {[%emt 0:0:18]} Rb8 {[%emt 0:0:10]} 35. Rxd4+ {[%emt 0:0:5]
} Ke7 {[%emt 0:0:7]} 36. Rc4 {[%emt 0:0:6]} Kd7 {[%emt 0:0:0]} 37. Rc5 {[%emt 0:0:45]} Rb6 {[%emt 0:0:11]} 38. a4 {[%emt 0:0:7]} Kd6 {[%emt 0:0:7]} 39. d4 {[%emt 0:0:19]} a6 {[%emt 0:0:1]} 40. Ke4 {[%emt 0:0:0]} axb5 {[%emt 0:0:6]} 41. Rxb5 {[%emt 0:0:1]} Rc6 42. Rb2 Rc4 {[%emt 0:0:26]
} 43. a5 {[%emt 0:0:35]} Ra4 {[%emt 0:0:8]} 44. Rb5 {[%emt 0:0:0]} Ra2 {[%emt 0:0:20]} 45. Kf3 {[%emt 0:0:25]} Ra3+ {[%emt 0:0:4]} 46. Kg4 {[%emt 0:0:1]} Ra2 {[%emt 0:0:5]} 47. Kh3 {[%emt 0:0:8]} Ra4 {[%emt 0:0:6]
} 48. Rb8 {[%emt 0:0:32]} Rxa5 {[%emt 0:0:6]} 49. Rg8 {[%emt 0:0:2]
} g5 {[%emt 0:0:12]} 50. fxg5 {[%emt 0:0:7]} Rxg5 {[%emt 0:0:0]} 51. Rxg5 {[%emt 0:0:31]} hxg5 {[%emt 0:0:1]} 52. Kg4 {[%emt 0:0:1]} e5 {[%emt 0:0:1]} 53. Kxg5 {[%emt 0:0:1]} exd4 {[%emt 0:0:2]} 54. Kf4 {[%emt 0:0:2]
} Kd5 {[%emt 0:0:24]} 55. h4 {[%emt 0:0:1]} c5 {[%emt 0:0:2]
} 56. h5 {[%emt 0:0:1]} c4 {[%emt 0:0:3]} 57. h6 {[%emt 0:0:19]} c3 {[%emt 0:0:2]
} 58. h7 {[%emt 0:0:1]} c2 {[%emt 0:0:1]} 59. h8=Q {[%emt 0:0:0]} c1=Q+ {[%emt 0:0:6]} 60. Kg3 {[%emt 0:0:5]} Qg5+ {[%emt 0:1:13]} 61. Kf3 {[%emt 0:0:2]} Qe3+ {[%emt 0:0:8]} 62. Kg4 {[%emt 0:0:2]} d3 {[%emt 0:0:6]
} 63. Qa8+ {[%emt 0:1:22]} Kc4 {[%emt 0:0:3]} 64. Qc6+ {[%emt 0:0:11]
} Kb3 {[%emt 0:0:11]} 65. Qb5+ {[%emt 0:0:7]} Kc2 {[%emt 0:0:0]} 66. Qa4+ {[%emt 0:0:4]} Kd2 {[%emt 0:0:9]} 67. g3 {[%emt 0:0:14]} Ke2 {[%emt 0:0:5]} 68. Qc4 {[%emt 0:0:13]} Kf2 {[%emt 0:0:21]} 69. Qf7+ {[%emt 0:0:3]
} Ke1 {[%emt 0:0:5]} 70. Qb3 {[%emt 0:0:16]} Qe4+ {[%emt 0:0:0]} 71. Kh3 {[%emt 0:0:10]} d2 {[%emt 0:0:3]} 72. Qc3 {[%emt 0:0:3]} Ke2 {[%emt 0:0:2]} 73. Qb2 {[%emt 0:0:0]} Qf5+ {[%emt 0:0:34]} 74. Kh4 {[%emt 0:0:6]
} Qe4+ {[%emt 0:0:23]} 75. Kg5 {[%emt 0:0:24]} Qe3+ {[%emt 0:0:0]} 76. Kg4 {[%emt 0:0:7]} Ke1 {[%emt 0:0:5]} 77. Qb4 {[%emt 0:0:4]} Kf1 {[%emt 0:0:5]} 78. Qb1+ {[%emt 0:0:30]} Kf2 {[%emt 0:0:12]} 79. Qf5+ {[%emt 0:0:3]
} Ke1 {[%emt 0:0:6]} 80. Qa5 {[%emt 0:0:2]} Qe4+ {[%emt 0:0:0]} 81. Kh3 {[%emt 0:0:2]} Qh1+ {[%emt 0:0:7]} 82. Kg4 {[%emt 0:0:1]} Qe4+ {[%emt 0:0:2]} 83. Kh3 {[%emt 0:0:1]} Ke2 {[%emt 0:0:18]} 84. Qa6+ {[%emt 0:0:19]
} Qd3 {[%emt 0:0:14]} 85. Qe6+ {[%emt 0:0:13]} Qe3 {[%emt 0:0:0]} 86. Qc4+ {[%emt 0:0:34]} Kf2 {[%emt 0:0:2]} 87. Qf7+ {[%emt 0:0:4]} Ke1 {[%emt 0:0:2]} 88. Kg2 {[%emt 0:0:18]} Qe2+ {[%emt 0:0:3]} 0-1

[Event "FIDE World Rapid-ch Open 2018"]
[White "Rakhmanov, Aleksandr"]
[Black "Amonatov, Farrukh"]
[Site "St. Petersburg"]
[Round "14.19"]
[Annotator "ChessBase"]
[Result "1-0"]
[Date "2018.12.28"]
[WhiteElo "2629"]
[BlackElo "2614"]
[PlyCount "97"]
[TimeControl "900+10"]

1. c4 {[%emt 0:0:0]} Nf6 {[%emt 0:0:0]} 2. Nc3 {[%emt 0:0:0]} g6 {[%emt 0:0:0]
} 3. g3 {[%emt 0:0:0]} Bg7 {[%emt 0:0:0]} 4. Bg2 {[%emt 0:0:0]} 0-0 {[%emt 0:0:0]} 5. d3 {[%emt 0:0:0]} c5 {[%emt 0:0:1]} 6. e3 {[%emt 0:0:7]
} Nc6 {[%emt 0:0:2]} 7. Nge2 {[%emt 0:0:2]} e5 {[%emt 0:0:0]} 8. b3 {[%emt 0:0:12]} d6 {[%emt 0:0:2]} 9. Bb2 {[%emt 0:0:3]} Ne8 {[%emt 0:0:11]
} 10. 0-0 {[%emt 0:0:11]} Nc7 {[%emt 0:0:1]} 11. Qd2 {[%emt 0:0:0]} a6 {[%emt 0:0:5]} 12. Nd5 {[%emt 0:0:36]} Nxd5 {[%emt 0:0:8]} 13. cxd5 {[%emt 0:1:45]} Ne7 {[%emt 0:0:1]} 14. e4 {[%emt 0:0:1]} Bd7 {[%emt 0:1:12]
} 15. f4 {[%emt 0:0:22]} f6 {[%emt 0:0:1]} 16. Rf2 {[%emt 0:0:0]} b5 {[%emt 0:0:11]} 17. Raf1 {[%emt 0:0:36]} Qb6 {[%emt 0:0:1]} 18. h4 {[%emt 0:0:28]} a5 {[%emt 0:1:31]} 19. Kh2 {[%emt 0:0:9]} a4 {[%emt 0:0:0]} 20. b4 {[%emt 0:0:2]} Rac8 {[%emt 0:1:58]} 21. Bc3 {[%emt 0:0:51]} Bg4 {[%emt 0:1:20]} 22. Bh3 {[%emt 0:2:16]} Bxh3 {[%emt 0:0:3]} 23. Kxh3 {[%emt 0:0:1]
} cxb4 {[%emt 0:2:17]} 24. Bxb4 {[%emt 0:0:2]} f5 {[%emt 0:0:0]} 25. fxe5 {[%emt 0:3:1]} Bxe5 {[%emt 0:0:4]} 26. Nf4 {[%emt 0:0:32]} fxe4 {[%emt 0:7:3]} 27. dxe4 {[%emt 0:0:1]} Rce8 {[%emt 0:0:14]} 28. Ne6 {[%emt 0:0:55]
} Rxf2 {[%emt 0:0:1]} 29. Rxf2 {[%emt 0:1:32]} Nc6 {[%emt 0:0:0]} 30. Rf1 {[%emt 0:3:1]} Qb7 {[%emt 0:2:15]} 31. Qf2 {[%emt 0:1:13]} Qe7 {[%emt 0:0:11]} 32. Bd2 {[%emt 0:0:2]} Nd8 {[%emt 0:0:4]} 33. Bg5 {[%emt 0:0:14]
} Qf7 {[%emt 0:0:13]} 34. Bxd8 {[%emt 0:0:52]} Qxf2 {[%emt 0:0:0]} 35. Rxf2 {[%emt 0:0:2]} b4 {[%emt 0:0:1]} 36. Rf1 {[%emt 0:1:7]} a3 {[%emt 0:0:24]} 37. Bf6 {[%emt 0:0:13]} Bxf6 {[%emt 0:0:23]} 38. Rxf6 {[%emt 0:0:1]
} Rc8 {[%emt 0:0:13]} 39. h5 {[%emt 0:0:20]} gxh5 {[%emt 0:0:0]} 40. Kh4 {[%emt 0:0:1]} h6 {[%emt 0:0:15]} 41. Kxh5 {[%emt 0:0:2]} Kh7 {[%emt 0:0:44]} 42. Rf7+ {[%emt 0:0:3]} Kg8 {[%emt 0:0:5]} 43. Kg6 {[%emt 0:0:2]
} b3 {[%emt 0:0:10]} 44. axb3 {[%emt 0:0:3]} Ra8 {[%emt 0:0:0]} 45. Rf1 {[%emt 0:0:14]} a2 {[%emt 0:0:1]} 46. Ra1 {[%emt 0:0:1]} Kh8 {[%emt 0:0:2]} 47. b4 {[%emt 0:0:7]} Ra3 {[%emt 0:0:7]} 48. g4 {[%emt 0:0:0]} Ra4 {[%emt 0:0:5]} 49. Kf5 {[%emt 0:0:22]} 1-0